[Event "Festival Groningen-A 2024"]
[Site "Groningen"]
[Date "2024.12.29"]
[Round "8.8"]
[White "Palchuk, Andrii"]
[Black "Labruyere, Roger"]
[Result "0-1"]
[ECO "A13"]
[WhiteElo "2372"]
[BlackElo "2344"]
[Annotator "TA"]
[PlyCount "102"]
[EventDate "2024.12.21"]
[EventType "swiss"]
[EventCountry "NED"]
[SourceTitle "playchess.com"]
[Source "ChessBase"]
[SourceQuality "1"]
[TimeControl "40/5400+30:1800+30"]

{[%evp 13,102,9,35,30,59,37,42,15,23,35,108,104,120,113,116,118,122,120,131,135,178,-102,-105,-105,-86,-122,-115,-161,-164,-166,-174,-270,-274,-267,-239,-239,-230,-232,-224,-238,-247,-272,-260,-289,-299,-352,-327,-427,-333,-339,-329,-310,-249,-233,-228,-279,-277,-284,-272,-277,-284,-344,-293,-287,-294,-365,-271,-227,-215,-353,-316,-466,-440,-4836,-4630,-2339,-2629,-29965,-29951,-29971,-29974,-29974,-29975,-29973,-29973,-29974,-29975,-29974,-29975,-29987,-29988]} 1. Nf3 {[%emt 0:00:04]} d5 {[%emt 0:00:05]} 2. e3 {[%emt 0:00:05]} Nf6 {[%emt 0:00:11]} 3. c4 {[%emt 0:00:05]} e6 {[%emt 0:00:46]} 4. b3 {[%emt 0:00:18]} Be7 {[%emt 0:00:11]} 5. Bb2 {[%emt 0:00:06]} a5 {[%emt 0:00:05]} 6. a3 {[%emt 0:03:05]} Nbd7 {[%emt 0:01:42]} 7. Be2 {[%emt 0:02:21]} Nc5 {[%emt 0:07:20]} 8. d4 {[%emt 0:03:24]} Nce4 {[%emt 0:00:50]} 9. O-O {[%emt 0:00:36]} O-O {[%emt 0:00:42]} 10. c5 {[%emt 0:11:31]} c6 {[%emt 0:03:27]} 11. b4 {[%emt 0:02:41]} b6 {[%emt 0:08:23]} (11... Nd7 $14) 12. Ne5 $16 {[%emt 0:04:31]} Qc7 {[%emt 0:11:20]} 13. f3 {[%emt 0:03:30]} bxc5 {[%emt 0:00:50]} 14. fxe4 {[%emt 0:04:58]} axb4 {[%emt 0:03:11]} 15. axb4 {[%emt 0:02:47]} Rxa1 {[%emt 0:00:07]} 16. Bxa1 {[%emt 0:00:04]} cxd4 {[%emt 0:01:35]} 17. exd5 $2 {[%emt 0:09:23]} (17. Bxd4 Nxe4 18. Nc3 Nxc3 19. Bxc3 Bd6 $16) ({White should try} 17. Qxd4 $18 {Threatens to win with Ng4.} c5 18. Qb2) 17... Qxe5 $17 {[%emt 0:03:40]} 18. Bxd4 {[%emt 0:11:27]} Qxd5 {[%emt 0:00:51]} 19. Nc3 {[%emt 0:05:20]} Qg5 {[%emt 0:01:00]} 20. Rf3 {[%emt 0:04:01] [#]} (20. Qd3 $17) 20... e5 $1 $19 {[%emt 0:08:03]} (20... Bxb4 $2 {loses.} 21. Rg3 Qh6 22. Rh3 $18) 21. Rg3 {[%emt 0:01:47]} Qf5 {[%emt 0:00:11]} 22. e4 {[%emt 0:04:48]} (22. Rf3 Qe6 23. Bc5) 22... Nxe4 $19 {[%emt 0:02:44]} 23. Bg4 {[%emt 0:03:43]} Nxc3 {[%emt 0:04:26]} 24. Bxc3 {[%emt 0:00:56]} Qf6 {[%emt 0:00:37]} 25. Bxc8 {[%emt 0:00:55]} Rxc8 {[%emt 0:00:02]} 26. Qe2 {[%emt 0:03:08]} Bd6 {[%emt 0:02:04]} 27. Rd3 {[%emt 0:00:47]} h6 {[%emt 0:04:22]} 28. g3 {[%emt 0:01:05]} Qe6 {[%emt 0:01:40]} 29. Qd1 {[%emt 0:00:28]} Be7 {[%emt 0:00:51]} 30. Rd7 {[%emt 0:00:05]} Bg5 {[%emt 0:00:34]} 31. Rd6 {[%emt 0:00:32]} Qc4 {[%emt 0:00:46]} 32. Qd3 {[%emt 0:00:30]} Qxd3 {[%emt 0:00:45]} 33. Rxd3 {[%emt 0:00:02]} e4 {[%emt 0:00:26]} 34. Rd7 {[%emt 0:00:04]} c5 {[%emt 0:01:02]} 35. h4 {[%emt 0:00:58]} cxb4 {[%emt 0:00:16]} 36. Bxb4 {[%emt 0:00:03]} Bf6 {[%emt 0:00:16]} 37. Be7 {[%emt 0:00:04]} Bxe7 {[%emt 0:02:00]} 38. Rxe7 {[%emt 0:00:05]} Rc4 {[%emt 0:00:11]} 39. Kf2 {[%emt 0:00:59]} Kf8 {[%emt 0:00:11]} 40. Re5 {[%emt 0:00:43]} Rc2+ {[%emt 0:08:55]} 41. Ke3 {[%emt 0:30:23]} (41. Kf1 {keeps fighting.}) 41... Rg2 $19 {[%emt 0:30:14]} 42. Kf4 {[%emt 0:00:06]} (42. Rxe4 $142 Rxg3+ 43. Kf2) 42... Rf2+ $19 {[%emt 0:00:07]} 43. Kg4 {[%emt 0:00:02]} (43. Ke3 $142 Rf3+ 44. Kxe4 Rxg3 45. Kf4) 43... f6 $19 {[%emt 0:00:18]} 44. Ra5 {[%emt 0:00:05]} e3 {[%emt 0:00:12]} 45. Ra3 {[%emt 0:00:05]} h5+ {[%emt 0:02:16]} 46. Kh3 {[%emt 0:02:10]} e2 {[%emt 0:00:24]} 47. Re3 {[%emt 0:00:02]} f5 {[%emt 0:00:23]} 48. Re6 {[%emt 0:00:11]} Kf7 {[%emt 0:00:06]} 49. Re5 {[%emt 0:00:04]} g6 {[%emt 0:02:07]} 50. Re3 {[%emt 0:02:21]} f4 {[%emt 0:00:08]} 51. Re4 {[%emt 0:00:04]} f3 {[%emt 0:00:17]} 0-1

[Event "Festival Groningen-A 2024"]
[Site "Groningen"]
[Date "2024.12.29"]
[Round "8.9"]
[White "Vijayakumar, Rishi"]
[Black "Smeets, Kobe"]
[Result "1/2-1/2"]
[ECO "D44"]
[WhiteElo "2204"]
[BlackElo "2349"]
[Annotator "TA"]
[PlyCount "77"]
[EventDate "2024.12.21"]
[EventType "swiss"]
[EventCountry "NED"]
[SourceTitle "playchess.com"]
[Source "ChessBase"]
[SourceQuality "1"]
[TimeControl "40/5400+30:1800+30"]

{[%evp 14,77,0,0,0,-44,-37,-36,0,0,0,-45,-50,-51,-46,-43,-54,-50,-52,-42,0,-36,0,0,0,0,0,0,0,-11,-12,-14,-9,-83,-77,-109,-39,-39,-18,-25,-29,-36,0,0,0,-50,-59,-58,0,0,0,0,0,0,0,0,0,0,0,0,0,0,0,0,0,0]} 1. d4 {[%emt 0:04:02]} d5 {[%emt 0:00:05]} 2. c4 {[%emt 0:00:09]} c6 {[%emt 0:00:11]} 3. Nc3 {[%emt 0:00:29]} Nf6 {[%emt 0:00:15]} 4. Nf3 {[%emt 0:00:11]} dxc4 {[%emt 0:00:11]} 5. a4 {[%emt 0:00:13]} e6 {[%emt 0:00:25]} 6. e4 {[%emt 0:01:17]} Bb4 {[%emt 0:00:43]} 7. Bg5 {[%emt 0:02:13]} Bxc3+ {[%emt 0:01:25]} 8. bxc3 {[%emt 0:00:12]} Qa5 {[%emt 0:00:05]} 9. Bd2 {[%emt 0:14:34]} Nxe4 {[%emt 0:01:29]} 10. Bxc4 {[%emt 0:00:18]} b6 {[%emt 0:08:24][%cal Oe4d2]} 11. Ne5 {[%emt 0:08:36]} Nxd2 {[%emt 0:06:15]} 12. Qxd2 {[%emt 0:00:25]} (12. Kxd2 $5 O-O 13. Qf3 $11) 12... Ba6 {[%emt 0:03:17]} 13. O-O {[%emt 0:04:43][%cal Oe5f7]} Bxc4 {[%emt 0:04:24]} 14. Nxc4 {[%emt 0:00:16]} Qd5 {[%emt 0:00:09]} 15. Ne3 {[%emt 0:01:07][%cal Bc4e3,Be3g4,Bg4f6][%mdl 32]} Qd8 {[%emt 0:06:44]} 16. f4 {[%emt 0:03:29]} g6 {[%emt 0:08:18]} 17. d5 {[%emt 0:18:42]} cxd5 {[%emt 0:04:50]} 18. f5 $1 {[%emt 0:00:09]} Nc6 {[%emt 0:31:33]} (18... exf5 19. Nxf5 O-O 20. Qh6 gxf5 21. Rf3 $18) 19. fxe6 {[%emt 0:02:29]} fxe6 {[%emt 0:00:17]} 20. Ng4 {[%emt 0:15:03]} Qd6 {[%emt 0:01:30]} 21. Qg5 {[%emt 0:00:19][%cal Oc3c4]} Qe7 {[%emt 0:01:06]} 22. Nf6+ {[%emt 0:06:13]} Kd8 {[%emt 0:00:01]} 23. Rad1 {[%emt 0:04:39]} (23. Rae1 $11) 23... Kc8 $17 {[%emt 0:03:06]} 24. c4 {[%emt 0:02:16]} d4 {[%emt 0:01:54]} (24... Kb7 $17 {Threatens to win with ...Rhf8.} 25. cxd5 exd5) 25. Qb5 $15 {[%emt 0:00:30]} Kb7 {[%emt 0:02:45]} 26. a5 {[%emt 0:04:26]} Nxa5 {[%emt 0:05:58]} 27. Ne4 {[%emt 0:01:01][%cal Of1f7]} Rad8 {[%emt 0:03:30]} (27... Raf8 {with more complications.} 28. c5 Qc7 29. Rfe1 Rf5) 28. c5 {[%emt 0:01:48] Threatens to win with Nd6+.} Rd5 {[%emt 0:00:29]} 29. Rb1 {[%emt 0:01:23]} (29. Ra1 $11 Ka8 30. Rfb1) 29... Ka8 {[%emt 0:01:04]} 30. Qa6 {[%emt 0:00:44]} Qb7 {[%emt 0:01:44]} (30... d3 $1 $15) 31. Rxb6 $11 {[%emt 0:00:17]} Qxa6 {[%emt 0:00:49]} 32. Rxa6 {[%emt 0:00:01]} Nb3 {[%emt 0:01:44] Against Rfa1} 33. Rf7 {[%emt 0:00:43]} (33. Rxe6 Nxc5 34. Nxc5 Rxc5 $17) 33... Nxc5 {[%emt 0:01:14]} 34. Rfxa7+ {[%emt 0:00:17]} Kb8 {[%emt 0:00:08]} 35. Nxc5 {[%emt 0:00:29]} Rxc5 {[%emt 0:00:10]} 36. Ra8+ {[%emt 0:00:10]} Kb7 {[%emt 0:00:49]} 37. R8a7+ {[%emt 0:00:09]} (37. Rxh8 Kxa6 38. Rxh7 Kb5 $19) 37... Kc8 {[%emt 0:00:40]} 38. Ra8+ {[%emt 0:00:05]} Kb7 {[%emt 0:00:15]} 39. R8a7+ {[%emt 0:05:53]} (39. Rxh8 $2 {is the wrong capture.} Kxa6 40. Kf2 Rh5 $19) 1/2-1/2

[Event "Festival Groningen-A 2024"]
[Site "Groningen"]
[Date "2024.12.29"]
[Round "8.10"]
[White "Koster, Ramon"]
[Black "Cernov, Henrik"]
[Result "1/2-1/2"]
[ECO "E48"]
[WhiteElo "2330"]
[BlackElo "2187"]
[Annotator "TA"]
[PlyCount "45"]
[EventDate "2024.12.21"]
[EventType "swiss"]
[EventCountry "NED"]
[SourceTitle "playchess.com"]
[Source "ChessBase"]
[SourceQuality "1"]
[TimeControl "40/5400+30:1800+30"]

{[%evp 17,45,18,14,0,31,14,35,35,31,14,14,14,27,21,22,0,0,0,0,0,0,0,31,0,10,0,0,0,0,-7]} 1. d4 {[%emt 0:00:04]} Nf6 {[%emt 0:00:04]} 2. c4 {[%emt 0:00:06]} e6 {[%emt 0:00:04]} 3. Nc3 {[%emt 0:00:22]} Bb4 {[%emt 0:00:06]} 4. e3 {[%emt 0:00:03]} O-O {[%emt 0:00:07]} 5. Bd3 {[%emt 0:00:08]} c5 {[%emt 0:00:07]} 6. Nge2 {[%emt 0:00:19]} d5 {[%emt 0:00:42]} 7. cxd5 {[%emt 0:00:46]} cxd4 {[%emt 0:00:12]} 8. exd4 {[%emt 0:00:14]} Qxd5 {[%emt 0:00:14]} 9. O-O {[%emt 0:00:24]} Qh5 {[%emt 0:00:20]} 10. Ne4 {[%emt 0:00:43]} Nxe4 {[%emt 0:04:48]} 11. Bxe4 {[%emt 0:00:13]} Bd6 {[%emt 0:01:51][%csl Gd6][%cal Rh5h2] [#]} 12. h3 {[%emt 0:04:18] White is slightly better.} (12. Bf4 {simplifies} Bxf4 13. Nxf4 Qxd1 14. Rfxd1 Nd7 15. Rac1) 12... Nd7 {[%emt 0:02:42]} 13. Qd3 {[%emt 0:06:46]} Nf6 {[%emt 0:02:46]} 14. Bf3 {[%emt 0:00:15]} Qg6 {[%emt 0:01:49]} 15. Qxg6 {[%emt 0:02:53]} hxg6 {[%emt 0:00:22]} 16. Bf4 {[%emt 0:10:58]} Bxf4 {[%emt 0:09:51]} 17. Nxf4 {[%emt 0:01:10][%cal Be2f4,Bf4d3,Bd3e5][%mdl 32]} Rd8 {[%emt 0:04:26]} 18. Rfd1 {[%emt 0:01:15]} Bd7 {[%emt 0:05:02]} 19. Nd3 {[%emt 0:02:55]} Nd5 {[%emt 0:03:01]} 20. Rac1 {[%emt 0:04:48]} Rac8 {[%emt 0:02:30] The position is equal.} 21. Ne5 {[%emt 0:29:26]} Be8 {[%emt 0:06:32]} 22. h4 {[%emt 0:03:10]} Kf8 {[%emt 0:07:23]} 23. g3 {[%emt 0:02:55] Weighted Error Value: White=0.06 (flawless) /Black=0.08 (flawless) .  Inaccurate:     	White=1     	Black=2      OK:         	White=4     	Black=5} 1/2-1/2

[Event "Festival Groningen-A 2024"]
[Site "Groningen"]
[Date "2024.12.29"]
[Round "8.11"]
[White "De Jong, Migchiel"]
[Black "Albers, Sasa"]
[Result "1/2-1/2"]
[ECO "D02"]
[WhiteElo "2275"]
[BlackElo "2268"]
[Annotator "RC"]
[PlyCount "43"]
[EventDate "2024.12.21"]
[EventType "swiss"]
[EventCountry "NED"]
[SourceTitle "playchess.com"]
[Source "ChessBase"]
[SourceQuality "1"]
[TimeControl "40/5400+30:1800+30"]

1. Nf3 {[%emt 0:00:12]} Nf6 {[%emt 0:00:30]} 2. g3 {[%emt 0:01:01]} d5 {[%emt 0:03:45]} 3. Bg2 {[%emt 0:00:21]} Nbd7 {[%emt 0:02:23]} 4. d4 {[%emt 0:01:54]} Nb6 {[%emt 0:00:04]} 5. O-O {[%emt 0:00:53]} h6 {[%emt 0:00:23]} 6. Nbd2 {[%emt 0:02:07]} Bf5 {[%emt 0:00:38]} 7. c4 {[%emt 0:01:29]} e6 {[%emt 0:02:35]} 8. Ne5 {[%emt 0:01:48]} c6 {[%emt 0:02:24]} 9. b3 {[%emt 0:02:11]} Be7 {[%emt 0:03:21]} 10. Bb2 {[%emt 0:01:31]} O-O {[%emt 0:00:33]} 11. e3 {[%emt 0:01:22]} Nbd7 {[%emt 0:03:04]} 12. Qe2 {[%emt 0:03:13]} Qc7 {[%emt 0:08:25]} 13. Rac1 {[%emt 0:10:43]} Rad8 {[%emt 0:03:21]} 14. Nxd7 {[%emt 0:10:07]} Qxd7 {[%emt 0:08:15]} 15. a3 {[%emt 0:02:55]} a5 {[%emt 0:05:22]} 16. c5 {[%emt 0:05:21]} Qc7 {[%emt 0:04:17]} 17. b4 {[%emt 0:02:24]} axb4 {[%emt 0:00:38]} 18. axb4 {[%emt 0:00:07]} Ra8 {[%emt 0:02:06]} 19. Ra1 {[%emt 0:00:41]} b6 {[%emt 0:07:49]} 20. Nb3 {[%emt 0:01:03]} Nd7 {[%emt 0:03:48]} 21. Bc3 {[%emt 0:01:47]} Qb7 {[%emt 0:03:04]} 22. Rfc1 {[%emt 0:03:08]} 1/2-1/2

[Event "Festival Groningen-A 2024"]
[Site "Groningen"]
[Date "2024.12.29"]
[Round "8.12"]
[White "Kazakouski, Valery"]
[Black "De Boer, Eelke"]
[Result "1-0"]
[ECO "C02"]
[WhiteElo "2567"]
[BlackElo "2426"]
[Annotator "TA"]
[PlyCount "89"]
[EventDate "2024.12.21"]
[EventType "swiss"]
[EventCountry "NED"]
[SourceTitle "playchess.com"]
[Source "ChessBase"]
[SourceQuality "1"]
[TimeControl "40/5400+30:1800+30"]

{[%evp 16,89,0,0,27,4,0,0,0,0,14,18,10,11,10,10,14,12,29,8,9,0,23,15,8,8,10,2,27,18,22,20,45,42,41,37,39,41,39,35,39,33,39,37,33,19,22,8,50,49,84,51,98,99,91,90,91,99,87,93,94,59,154,152,145,147,151,125,118,118,118,118,118,118,357,352]} 1. e4 {[%emt 0:00:03]} e6 {[%emt 0:04:47]} 2. d4 {[%emt 0:00:10]} d5 {[%emt 0:00:17]} 3. e5 {[%emt 0:00:07]} c5 {[%emt 0:00:08]} 4. c3 {[%emt 0:00:07]} Nc6 {[%emt 0:00:07]} 5. Nf3 {[%emt 0:00:08]} Bd7 {[%emt 0:03:04]} 6. Be2 {[%emt 0:00:10]} Nge7 {[%emt 0:00:12][%cal Bg8e7,Be7f5,Bf5e3][%mdl 32]} 7. O-O {[%emt 0:00:15]} cxd4 {[%emt 0:07:14]} 8. cxd4 {[%emt 0:00:13]} Nf5 {[%emt 0:00:07]} 9. Nc3 {[%emt 0:01:57]} Qb6 {[%emt 0:00:16]} 10. Be3 {[%emt 0:01:42]} (10. Na4 $5 Qa5 11. Bd2 $14) 10... Nxe3 {[%emt 0:05:42]} 11. fxe3 {[%emt 0:00:10]} Be7 {[%emt 0:00:10] The position is equal.} 12. a3 {[%emt 0:01:04]} O-O {[%emt 0:01:14]} (12... Qxb2 $2 {perishes.} 13. Na4 $18) 13. b4 {[%emt 0:02:42]} f6 {[%emt 0:03:27]} 14. Na4 {[%emt 0:06:06]} Qd8 {[%emt 0:02:54]} 15. exf6 {[%emt 0:00:18]} Bxf6 {[%emt 0:00:48]} 16. Nc5 {[%emt 0:03:09]} b6 {[%emt 0:05:49]} 17. Nxd7 {[%emt 0:03:03]} Qxd7 {[%emt 0:00:07]} 18. Rc1 {[%emt 0:00:08] Threatens to win with Bb5.} Qd6 {[%emt 0:04:48]} 19. Ba6 {[%emt 0:08:56] aiming for Bb7.} Ne7 {[%emt 0:05:17][%cal Bc6e7,Be7f5,Bf5h4,Bh4f3][%mdl 32]} 20. Qc2 {[%emt 0:06:17]} Nf5 {[%emt 0:07:52]} 21. Rfe1 {[%emt 0:11:22]} Nh4 {[%emt 0:02:51]} 22. Qc7 {[%emt 0:03:54]} Nxf3+ {[%emt 0:08:03]} 23. gxf3 {[%emt 0:00:09]} Be7 {[%emt 0:00:39]} 24. f4 {[%emt 0:03:18]} Qxc7 {[%emt 0:02:46]} 25. Rxc7 {[%emt 0:00:09]} Bd6 {[%emt 0:00:04]} 26. Rc6 {[%emt 0:03:17]} Rad8 {[%emt 0:00:51]} 27. h4 {[%emt 0:00:10]} Kf7 {[%emt 0:04:45]} 28. Re2 {[%emt 0:00:45]} Ke7 {[%emt 0:01:19]} 29. Rg2 {[%emt 0:00:55]} g6 {[%emt 0:00:39]} 30. h5 {[%emt 0:02:35]} Rg8 {[%emt 0:09:51]} 31. Kf2 {[%emt 0:07:02]} Kf6 {[%emt 0:06:03]} ({Of course not} 31... gxh5 $6 32. Rh2 $16) 32. Bd3 {[%emt 0:03:35]} (32. hxg6 {simplifies} hxg6 33. Rh2 Rd7 34. Rh1) 32... Bb8 {[%emt 0:02:47]} 33. Ke2 {[%emt 0:03:11] White is more active.} (33. b5 {simplifies} Ke7 34. a4 Kf7 35. Kf3) 33... Rc8 {[%emt 0:10:20]} (33... Bd6 $14) 34. Rxc8 $16 {[%emt 0:01:38]} Rxc8 {[%emt 0:00:04]} 35. hxg6 {[%emt 0:00:08][%mdl 4096] Endgame. KRB-KRB} Rg8 {[%emt 0:00:11] [#]} 36. g7 $1 {[%emt 0:00:26]} Rxg7 {[%emt 0:00:30]} 37. Rh2 {[%emt 0:00:10]} Bd6 {[%emt 0:01:35]} 38. Bxh7 {[%emt 0:03:48]} Rg1 {[%emt 0:01:04]} (38... Bf8 $14) 39. Rh6+ {[%emt 0:08:33]} Ke7 {[%emt 0:00:07]} 40. Kf2 {[%emt 0:01:11]} Rg7 {[%emt 0:01:06]} 41. Bg6 {[%emt 0:31:51]} a5 {[%emt 0:05:52]} 42. bxa5 {[%emt 0:00:00]} bxa5 {[%emt 0:00:02]} 43. a4 {[%emt 0:00:00]} Bb4 {[%emt 0:00:22]} 44. Kf3 {[%emt 0:00:00]} Kf6 $2 {[%emt 0:01:44]} (44... Kd7 $16 45. Bh5 Bf8) 45. Bh5+ {[%emt 0:00:00] Weighted Error Value: White=0.07 (flawless) /Black=0.18 (very precise) .  Loses game:     	---       	Black=1      Mistake:       	---       	Black=2      Inaccurate:     	White=2     	Black=2      OK:         	White=14    	Black=14     Best:        	White=4     	---        Brilliant:      	White=1     	---} 1-0

[Event "Festival Groningen-A 2024"]
[Site "Groningen"]
[Date "2024.12.29"]
[Round "8.13"]
[White "Slagboom, Leandro"]
[Black "Ritzerveld, Noah"]
[Result "1/2-1/2"]
[ECO "A20"]
[WhiteElo "2370"]
[BlackElo "2182"]
[Annotator "TA"]
[PlyCount "98"]
[EventDate "2024.12.21"]
[EventType "swiss"]
[EventCountry "NED"]
[SourceTitle "playchess.com"]
[Source "ChessBase"]
[SourceQuality "1"]
[TimeControl "40/5400+30:1800+30"]

{[%evp 15,98,30,20,14,33,14,25,21,25,31,25,20,59,44,55,47,83,79,88,77,83,80,123,43,53,46,33,-11,-20,-17,-16,-4,-8,-50,0,0,0,0,0,0,0,-16,0,0,0,0,23,27,28,24,54,54,84,83,70,45,72,45,45,45,45,48,48,39,33,32,51,45,51,39,41,41,41,41,41,0,0,0,0,0,0,0,0,0,0]} 1. c4 {[%emt 0:00:03]} e5 {[%emt 0:00:07]} 2. g3 {[%emt 0:00:05]} Nf6 {[%emt 0:00:07]} 3. Bg2 {[%emt 0:00:05]} d5 {[%emt 0:00:06]} 4. cxd5 {[%emt 0:00:05]} Nxd5 {[%emt 0:00:04]} 5. Nf3 {[%emt 0:00:06]} Nc6 {[%emt 0:00:24]} 6. O-O {[%emt 0:00:06]} Be7 {[%emt 0:01:41]} 7. d4 {[%emt 0:00:07]} e4 {[%emt 0:13:41]} 8. Ne5 {[%emt 0:00:06]} f5 $1 {[%emt 0:04:37]} 9. Nxc6 {[%emt 0:00:07]} bxc6 {[%emt 0:00:07]} 10. Qc2 {[%emt 0:00:04]} Bd7 {[%emt 0:03:37]} 11. Nc3 {[%emt 0:00:21]} O-O {[%emt 0:01:13]} 12. f3 {[%emt 0:01:09]} exf3 {[%emt 0:06:39]} 13. Rxf3 {[%emt 0:00:30][%cal Bf1f3,Bf3c3,Bc3c6][%mdl 32]} Be6 {[%emt 0:06:22]} 14. Nxd5 $1 {[%emt 0:00:33]} cxd5 {[%emt 0:02:28]} 15. Qc6 {[%emt 0:12:31]} Qd6 {[%emt 0:07:58]} 16. Rc3 {[%emt 0:01:12] Bf4 would now be deadly. White is more active.} Bf6 {[%emt 0:01:35]} 17. e3 {[%emt 0:05:31]} ({Of course not} 17. Qxc7 $6 Bxd4+ 18. Kf1 Qxc7 19. Rxc7 Rac8 $11) 17... Rfc8 {[%emt 0:05:59]} 18. Bd2 {[%emt 0:07:22]} Rab8 {[%emt 0:04:47] [#]} 19. Rac1 {[%emt 0:03:42]} (19. b3 $1 $16) 19... Qxc6 $14 {[%emt 0:04:57]} 20. Rxc6 {[%emt 0:00:06]} Rxb2 {[%emt 0:01:43]} 21. Be1 {[%emt 0:13:04]} Kf7 {[%emt 0:10:15][%cal Of6g5]} 22. Rxc7+ {[%emt 0:00:33]} Rxc7 {[%emt 0:00:06]} 23. Rxc7+ {[%emt 0:00:03]} Ke8 {[%emt 0:01:00] aiming for ...f4.} 24. Rxa7 {[%emt 0:00:32]} g5 {[%emt 0:05:41]} (24... f4 $1 $15 25. Ra8+ (25. gxf4 $2 Rb1 $19) 25... Kf7 26. Ra7+ (26. gxf4 $2 Rb1 $19) (26. exf4 $2 Bxd4+ 27. Kf1 Bg4 $19) 26... Kg6) 25. Bh3 {[%emt 0:26:21]} Bd7 {[%emt 0:05:27]} 26. Ra5 {[%emt 0:08:00]} Rb1 {[%emt 0:03:20]} 27. Kf2 {[%emt 0:02:14]} Rb2+ {[%emt 0:00:31]} 28. Kf1 {[%emt 0:03:25]} Bb5+ {[%emt 0:00:40]} (28... g4 $5 29. Bg2 $8 Bb5+ 30. Kg1 Bg5 $17) 29. Kg1 {[%emt 0:00:05]} Rb1 {[%emt 0:00:58]} 30. Bf1 {[%emt 0:00:22]} (30. Bxf5 $2 {loses.} Rxe1+ 31. Kf2 Re2+ 32. Kf3 Rb2 $19) 30... Rxe1 {[%emt 0:01:22]} 31. Rxb5 {[%emt 0:00:04]} Rxe3 {[%emt 0:00:27]} 32. Rxd5 $11 {[%emt 0:00:10][%mdl 4096] Endgame KRB-KRB. White is a pawn up.} Re4 {[%emt 0:01:27]} 33. Rxf5 {[%emt 0:01:00]} Bxd4+ {[%emt 0:00:13]} 34. Kg2 {[%emt 0:00:14]} Re5 {[%emt 0:00:57]} 35. Rf3 {[%emt 0:01:59]} Re3 {[%emt 0:02:45]} 36. Rf2 {[%emt 0:00:15]} h5 {[%emt 0:01:45][%cal Bh7h5,Bh5h4][%mdl 32]} 37. Rd2 {[%emt 0:04:09]} Bc3 {[%emt 0:00:42]} 38. Rd5 {[%emt 0:00:34]} Re5 {[%emt 0:00:43]} 39. Rd3 {[%emt 0:00:12]} Ba5 {[%emt 0:01:18]} 40. h3 {[%emt 0:00:27]} h4 {[%emt 0:01:00]} 41. Rd4 {[%emt 0:32:38]} Be1 {[%emt 0:02:25]} 42. g4 {[%emt 0:00:00]} Ke7 {[%emt 0:00:52]} 43. Kf3 {[%emt 0:00:00]} Bc3 {[%emt 0:01:49]} 44. Rc4 {[%emt 0:00:00]} Bd2 {[%emt 0:00:21]} 45. a4 {[%emt 0:00:00]} Re3+ {[%emt 0:01:08]} 46. Kf2 {[%emt 0:00:00]} Ra3 {[%emt 0:01:47]} 47. Ke2 {[%emt 0:00:00]} Bf4 {[%emt 0:01:22]} 48. Bg2 {[%emt 0:00:00]} Kd6 {[%emt 0:01:02]} 49. Rd4+ {[%emt 0:00:00]} Ke5 {[%emt 0:25:25]} 1/2-1/2